Cogmind - Beta 15 @@@ ROGUE MODE // 2025.09.23 @ 04:44:06 Player: Kotyk77 Result: Destroyed by X3-J59(R) with Subdweller Laser Performance ------------- Evolutions (0) 0 Regions Visited (3) 600 Robots Destroyed (17) 85 Value Destroyed (507) 507 Prototype IDs (3) 60 Alien Tech Used (0) 0 Bonus (0) 0 TOTAL SCORE: 1252 Bonus ------- None Cogmind --------- Core Integrity 0/250 Matter 285/300 Energy 122/125 System Corruption 0% Temperature Cool (6) Movement Walking (120) Location -10/Subcaves Parts ------- > --- POWER (1) -------- Light Ion Engine > --- PROPULSION (2) --- Aluminum Leg Aluminum Leg > --- UTILITY (2) ------ Small Storage Unit Signal Interpreter > --- WEAPON (2) ------- Battle Cannon Flail > --- INVENTORY (8) ---- Aluminum Leg Aluminum Leg Sensor Array Scrap Shield Flail Scrap Shield Fragment (32) Peak State ------------ > --- POWER ------------ Ion Engine > --- PROPULSION ------- Aluminum Leg Aluminum Leg > --- UTILITY ---------- Small Storage Unit Signal Interpreter > --- WEAPON ----------- Beamcaster Flail > --- INVENTORY -------- Aluminum Leg Aluminum Leg Medium Matter Pod Sensor Array Weapon Shielding Improved Medium Laser Flail [Rating: 13] Favorites ----------- Power Light Ion Engine Engine Light Ion Engine Propulsion Aluminum Leg Leg Aluminum Leg Wheel Compact Wheel Utility Small Storage Unit Storage Small Storage Unit Processor Signal Interpreter Weapon Flail Energy Gun Beamcaster Ballistic Gun Assault Rifle Ballistic Cannon Battle Cannon Impact Weapon Flail Build | -11 -10 -10 -10 ------- Run | Yrd Mat Min Sub Slots Evolved . | . . . . Power . | . . . . Propulsion . | . . . . Utility . | . . . . Weapon . | . . . . Parts Attached 23 | 6 12 4 1 Power 4 | 1 1 2 . Engine 4 | 1 1 2 . Core . | . . . . Reactor . | . . . . Propulsion 8 | 2 5 1 . Treads . | . . . . Leg 5 | . 4 1 . Wheel 3 | 2 1 . . Hover . | . . . . Flight . | . . . . Utility 2 | 1 1 . . Device . | . . . . Storage 1 | 1 . . . Processor 1 | . 1 . . Hackware . | . . . . Protection . | . . . . Artifact . | . . . . Weapon 9 | 2 5 1 1 Energy Gun 5 | 2 2 1 . Energy Cannon . | . . . . Ballistic Gun 1 | . 1 . . Ballistic Cannon 1 | . . . 1 Launcher . | . . . . Special Weapon . | . . . . Impact Weapon 2 | . 2 . . Slashing Weapon . | . . . . Piercing Weapon . | . . . . Special Melee Weapon . | . . . . Unidentified Prototypes 1 | . 1 . . Parts Lost 6 | . 2 2 2 Power 1 | . . 1 . Propulsion 2 | . 1 . 1 Utility . | . . . . Weapon 3 | . 1 1 1 Highest Loss Streak 2 | . 2 1 2 To Critical Strikes . | . . . . Average Backups 7 | 1 7 7 7 Power . | . . . . Propulsion 2 | 1 2 2 2 Utility 2 | . 2 3 2 Weapon 2 | . 2 2 1 Tool/Special . | . . . . Unused Backups 7 | . 1 . 6 Power . | . . . . Propulsion 1 | . . . 1 Utility 4 | . . . 4 Weapon 2 | . 1 . 1 Tool/Special . | . . . . Average Slot Usage (%) 98 | . 98 99 99 Engine 13 | . 14 13 14 Leg 24 | . 19 28 28 Wheel 3 | . 8 . . Storage 14 | . 14 14 14 Processor 13 | . 13 14 14 Energy Gun 7 | . 4 8 11 Ballistic Gun 6 | . 9 5 . Impact Weapon 13 | . 13 14 14 Peak Build Rating 13 | 6 11 13 13 Average Rating 10 | 5 9 11 12 On Entrance 7 | . 6 9 13 Naked Turns . | . . . . Heaviest Build 17 | 14 15 17 15 Greatest Support 32 | 26 32 20 20 Greatest Overweight (x) . | . . . . Average Overweight (x) . | . . . . Largest Inventory Capacity 8 | 8 8 8 8 Average Capacity 7 | 7 8 8 8 Most Carried 8 | 4 8 8 8 Average Carried 7 | 2 7 7 7 Final Capacity 8 | 8 8 8 8 Final Carried 8 | 4 8 8 7 Class Distribution -------------------- 100% | Mutant Dominant Class ---------------- Mutant | -10/Materials Mutant | -10/Mines Mutant | -10/Subcaves Resources | -11 -10 -10 -10 ----------- Run | Yrd Mat Min Sub Matter Collected 582 | 212 216 114 40 Remotely . | . . . . Salvage Created 605 | . 216 368 21 Parts 12 | . 8 4 . Haulers Intercepted . | . . . . Recyclers Shooed . | . . . . Parts Field Recycled . | . . . . Retrieved Matter . | . . . . Parts Self-Destructed . | . . . . Prevented . | . . . . Kills | -11 -10 -10 -10 ------- Run | Yrd Mat Min Sub Combat Hostiles Destroyed 13 | . 5 7 1 Melee 6 | . 4 2 . Guns 2 | . . 2 . Classes Destroyed 7 | . 3 3 1 Worker 2 | . 1 1 . Tunneler 1 | . . 1 . Recycler 1 | . . 1 . Watcher 1 | . 1 . . Grunt 11 | . 5 6 . Subdweller 1 | . . . 1 Assembled 1 | . . 1 . Best Kill Streak 3 | . 3 3 1 Combat Bots Only 3 | . 3 2 1 Max Kills in Single Turn 1 | . 1 1 1 Gunslinging . | . . . . Exploded . | . . . . Melee 1 | . 1 1 . Uniques/NPCs Destroyed . | . . . . Combat | -11 -10 -10 -10 -------- Run | Yrd Mat Min Sub Hostile Shots Fired 84 | . 29 39 16 Missed 20 | . 4 10 6 Hits 64 | . 25 29 10 Melee 2 | . . 2 . Projectile 62 | . 25 27 10 Critical Strikes 4 | . 2 1 1 Damage Taken 1063 | . 331 473 259 Core 265 | . 48 97 120 Absorbed by Shields . | . . . . Core Remaining (%) 100 | 100 . . . Volleys Fired 30 | . 17 7 6 Largest 1 | . 1 1 1 Hottest 75 | . 56 75 75 Shots Fired 30 | . 17 7 6 Gun 25 | . 17 7 1 Cannon 5 | . . . 5 Launcher . | . . . . Special . | . . . . Kinetic 14 | . 7 2 5 Thermal 16 | . 10 5 1 Explosive . | . . . . Electromagnetic . | . . . . Robot Hit Streak 7 | . 7 2 6 Robot Miss Streak 3 | . 3 2 . Penetration Max . | . . . . Secondary Targets . | . . . . Shots Hit Robots 47 | . 21 17 9 Core Hits 11 | . 6 4 1 Critical Kills 1 | . 1 . . Critical Parts Destroyed 9 | . 4 4 1 Critical Strikes 11 | . 6 4 1 Burn 1 | . 1 . . Smash 10 | . 5 4 1 Melee Attacks 41 | . 13 19 9 Impact 41 | . 13 19 9 Slashing . | . . . . Piercing . | . . . . Sneak Attacks 4 | . 1 3 . Combat Hostiles . | . . . . Follow-up Attacks . | . . . . Damage Inflicted 1531 | . 574 692 265 Guns 234 | . 169 65 . Cannons 117 | . . . 117 Explosions . | . . . . Melee 1180 | . 405 627 148 Ramming . | . . . . Kinetic 151 | . 34 . 117 Thermal 200 | . 135 65 . Explosive . | . . . . Electromagnetic . | . . . . Impact 1180 | . 405 627 148 Slashing . | . . . . Piercing . | . . . . Highest Corruption . | . . . . Average Corruption . | . . . . Corruption Purged . | . . . . Corruption Blocked . | . . . . Overload Shots . | . . . . Overflow Damage 531 | . 196 275 60 Projectiles . | . . . . Explosions . | . . . . Melee 531 | . 196 275 60 Knockbacks 6 | . 1 5 . Impact 6 | . 1 5 . Kinetic . | . . . . Secondary . | . . . . Self-Inflicted Damage . | . . . . Shots . | . . . . Rammed . | . . . . Targets Rammed . | . . . . Kicked . | . . . . Crushed . | . . . . Highest Temperature 275 | . 232 74 275 Average Temperature 88 | . 98 36 155 Received Heat Transfer 839 | . 222 243 374 Siege Activations . | . . . . Martial Activations . | . . . . Shielding Activations . | . . . . Robots Disrupted . | . . . . Combat Hostiles . | . . . . Robots Corrupted 8 | . 1 6 1 Combat Hostiles 5 | . 1 3 1 Parts Fried 7 | . 3 4 . Impact Corruptions 17 | . 4 11 2 Robots Melted . | . . . . Combat Hostiles . | . . . . Parts Melted . | . . . . Heat Transferred 481 | . 370 111 . Parts Sabotaged . | . . . . Parts Stolen . | . . . . Parts Stripped . | . . . . Power Chain Reactions . | . . . . Alert | -11 -10 -10 -10 ------- Run | Yrd Mat Min Sub Maximum Alert Level . | . . . . Low Security (%) 100 | 100 100 100 . Level 1 . | . . . . Level 2 . | . . . . Level 3 . | . . . . Level 4 . | . . . . Level 5 . | . . . . High Security . | . . . . Max Security . | . . . . Peak Influence 74 | . 64 74 . Initial . | . . . . Average 13 | . 12 17 . Influence Increases 410 | . 198 212 . Destroy 0b10 Robot/C 220 | . 100 120 . Destroy 0b10 Robot/NC 25 | . 10 15 . Destroy Leader 52 | . 22 30 . Allied During Kill 2 | . . 2 . Successful Hack 21 | . 21 . . Disable Machine 15 | . 15 . . Lose Combat Pursuer 75 | . 30 45 . Influence Decreases 410 | . 198 154 58 Entered New Map 31 | . . . 31 Time Decay 357 | . 198 132 27 Lost Part 10 | . . 10 . Lost Ally 12 | . . 12 . Squads Dispatched 1 | . 1 . . Investigation 1 | . 1 . . Extermination . | . . . . Reinforcement . | . . . . Assault . | . . . . Garrison . | . . . . Intercept . | . . . . Searches Triggered . | . . . . Construction Impeded . | . . . . Haulers Reinforced . | . . . . Active Scanning Responses . | . . . . Cargo Convoy Interrupts . | . . . . Stealth | -11 -10 -10 -10 --------- Run | Yrd Mat Min Sub Distress Signals 2 | . 2 . . Communications Jammed . | . . . . Distress Signals . | . . . . Times Spotted 24 | . 9 13 2 Peak Tracking Total 3 | . 3 2 1 Tactical Retreats 4 | . 2 2 . Traps | -11 -10 -10 -10 ------- Run | Yrd Mat Min Sub Traps Triggered . | . . . . Indirectly . | . . . . Trap Hack Attempts . | . . . . Triggered . | . . . . Disarmed . | . . . . Reprogrammed . | . . . . Reused . | . . . . Traps Extracted . | . . . . Installed . | . . . . Triggered . | . . . . Machines | -11 -10 -10 -10 ---------- Run | Yrd Mat Min Sub Machines Disabled 1 | . 1 . . Max in Single Turn 1 | . 1 . . Machines Repaired . | . . . . Machines Dismantled . | . . . . Machines Sabotaged . | . . . . Overloaded Fab Kills . | . . . . Hacking | -11 -10 -10 -10 --------- Run | Yrd Mat Min Sub Machines Accessed 5 | . 5 . . Terminals 4 | . 4 . . Fabricators . | . . . . Repair Stations . | . . . . Recycling Units 1 | . 1 . . Scanalyzers . | . . . . Garrison Access . | . . . . Total Hacks 12 | . 12 . . Successful 7 | . 7 . . Failed 4 | . 4 . . Catastrophic 1 | . 1 . . Database Lockouts 1 | . 1 . . Manual 12 | . 12 . . Terminals 11 | . 11 . . Fabricators . | . . . . Repair Stations . | . . . . Recycling Units 1 | . 1 . . Scanalyzers . | . . . . Garrison Access . | . . . . Terminal Hacks 4 | . 4 . . Robot Analysis 1 | . 1 . . Prototype ID Bank 1 | . 1 . . Terminal Index 1 | . 1 . . Scanalyzer Index 1 | . 1 . . Fabricator Hacks . | . . . . Repair Station Hacks . | . . . . Recycling Unit Hacks 1 | . 1 . . Report Inventory 1 | . 1 . . Scanalyzer . | . . . . Garrison Access Hacks . | . . . . Unauthorized Hacks 2 | . 2 . . Terminals 2 | . 2 . . Botnet 2 | . 2 . . Fabricators . | . . . . Repair Stations . | . . . . Recycling Units . | . . . . Scanalyzers . | . . . . Garrison Access . | . . . . Data Cores Recovered . | . . . . Used . | . . . . Hacking Detections 4 | . 4 . . Full Trace Events 3 | . 3 . . Feedback Events . | . . . . Feedback Blocked . | . . . . Robot Schematics Acquired . | . . . . Robots Built . | . . . . Authchips . | . . . . Time . | . . . . Total Robot Build Rating . | . . . . Part Schematics Acquired . | . . . . Parts Built . | . . . . Authchips . | . . . . Time . | . . . . Total Part Build Rating . | . . . . Parts Repaired . | . . . . Time . | . . . . Parts Recycled . | . . . . Recycled Matter . | . . . . Retrieved Matter . | . . . . Retrieved Components . | . . . . Parts Scanalyzed . | . . . . Part Schematics Acquired . | . . . . Parts Damaged . | . . . . Bothacking | -11 -10 -10 -10 ------------ Run | Yrd Mat Min Sub Used RIF Installer . | . . . . Robots Hacked . | . . . . Non-combat . | . . . . Combat . | . . . . Robot Hacks Applied . | . . . . Relay Couplers Released . | . . . . Fabnet Peak Effective % . | . . . . Robots Rewired . | . . . . Allies Hacked . | . . . . Hacks Repelled . | . . . . Allies | -11 -10 -10 -10 -------- Run | Yrd Mat Min Sub Total Allies 2 | . . 2 . Largest Group 2 | . . 2 . Highest-Rated Group 45 | . . 45 . Highest-Rated Ally 31 | . . 31 . Total Orders . | . . . . Ally Attacks 6 | . . 6 . Total Damage 64 | . . 64 . Kills . | . . . . Allies Corrupted . | . . . . Allies Melted . | . . . . Intel | -11 -10 -10 -10 ------- Run | Yrd Mat Min Sub Active Infowar (turns) . | . . . . Robot Analysis Total 1 | . 1 . . Derelict Logs Recovered 3 | . . 1 2 Drone Launches . | . . . . Drone Recoveries . | . . . . Exploration | -11 -10 -10 -10 ------------- Run | Yrd Mat Min Sub Turns Passed 1642 | 55 740 475 372 Spaces Moved 1205 | 47 557 328 273 Core 3 | 3 . . . Treads . | . . . . Legs 999 | . 398 328 273 Wheels 203 | 44 159 . . Hover . | . . . . Flight . | . . . . Fastest Speed 50 | 50 90 120 120 Average Speed 114 | 88 111 120 120 Slowest Speed 120 | 100 120 120 120 Overloaded Moves . | . . . . Propulsion Burnouts . | . . . . Robots Hopped . | . . . . Potential Cave-ins . | . . . . Cave-ins Triggered . | . . . . Exploration Rate (%) 36 | 3 66 58 17 Regions Visited 3 Branch Regions 2 Pre-discovered Areas . | . . . . Known Exits Taken 2 | . 1 1 . Unknown Exits Taken 1 | 1 . . . Scrap Searched 4 | . . 2 2 Spaces Dug 1 | . . . 1 Terrain Destroyed 1 | . . . 1 Melee 1 | . . . 1 Projectile . | . . . . AOE . | . . . . Terrain Rammed . | . . . . Walls Destroyed . | . . . . Machines Disabled . | . . . . Actions | -11 -10 -10 -10 --------- Run | Yrd Mat Min Sub Total 1368 | 57 637 373 301 Wait 38 | 1 19 15 3 Move 1202 | 46 556 327 273 Hop . | . . . . Pick Up 17 | 4 9 . 4 Fast Attach 11 | 6 3 2 . Attach 4 | . 1 1 2 Detach 1 | . 1 . . Swap 11 | . 10 1 . Drop 13 | . 8 1 4 Fire 30 | . 17 7 6 Melee 41 | . 13 19 9 Ram . | . . . . Kick . | . . . . Crush . | . . . . Escape Stasis . | . . . . Rewire . | . . . . Trap . | . . . . Miscellaneous . | . . . . Route ------- -11/Scrapyard -10/Materials (discovered 3 exits: *Mat x2 / *Min) -10/Mines -10/Subcaves (discovered 1 exit: Rec) History --------- Turn | Location | Event 19 | -11/Scrapyard | Discovered new exit (range 15) 56 | -11/Scrapyard | Entered Materials 114 | -10/Materials | Discovered new exit (range 16) 204 | -10/Materials | Discovered new exit (range 5) 208 | -10/Materials | Identified exit to Materials 318 | -10/Materials | Build established: Mutant 390 | -10/Materials | Central database locked down 392 | -10/Materials | Discovered exit to Materials (range 9) 568 | -10/Materials | Identified exit to Mines 796 | -10/Materials | Entered Mines 1029 | -10/Mines | Assembled infested the area 1089 | -10/Mines | Learned location of 2 exits from Materials 1208 | -10/Mines | Core integrity fell below 50% 1261 | -10/Mines | Discovered new exit (range 10) 1270 | -10/Mines | Identified exit to Subcaves 1271 | -10/Mines | Entered Subcaves 1272 | -10/Subcaves | Approached by a straggling Scientist 1321 | -10/Subcaves | Identified exit to Recycling 1347 | -10/Subcaves | Shifting Twisted Machinery released Battle Cannon 1368 | -10/Subcaves | Shifting Twisted Machinery released Scrap Shield 1549 | -10/Subcaves | Learned Materials interactive machine intel 1579 | -10/Subcaves | Disturbed a concealed Subdweller 1593 | -10/Subcaves | Core integrity fell below 20% 1643 | -10/Subcaves | Destroyed by X3-J59(R) with Subdweller Laser Last Messages --------------- X2-OW6(c): "I think it's somewhere northwest of here" 01579_ EM-I3D(R) angrily emerges from the Twisted Machinery. 01583_ Subatomizers dissect the Sub. Laser. 01586_ Beamcaster destroyed. 01591_ Destroyed Sub. Monowheel. 01591_ EM-I3D(R) system corrupted by crushing effect. 01594_ Aluminum Leg destroyed. 01598_ Critical hit (Meltdown: +290). 01602_ EM-I3D(R) suffers critical hit (Smash). 01602_ Destroyed Sub. Power Source. 01602_ EM-I3D(R) system corrupted by crushing effect. 01603_ EM-I3D(R) system terminally corrupted. 01604_ Acquired 30 matter. 01607_ Searching scrap... 01607_ Found Spk. Treads. 01607_ Found 54 Matter. 01610_ Subatomizers dissect the Sub. Laser. 01612_ Acquired Scrap Shield Fragment. 01615_ Extracted 4 energy. X2-OW6(c): "I think it's somewhere west of here" Map ----- +----------------------------------------------------+ | ???????????????????????????????????????????????? | | ???????????????????????????????????????????????? | | ???????????????????????????????????????????????? | | ???????????????????????????????????????????????? | | ???????????????????????????????????????????????? | | ???????????????????????????????????????????????? | | ???????????????????????????????????????????????? | | ???????????????????????????????????????????????? | | ???????????????????????????????????????????????? | | ????????????????????????????? ?????????????????? | | ???????????????????????????? #????????????????? | | ???????????????????????##?## ?????????????????? | | ??????????????????????## """ ##???????????????? | | ?????????????????????## """ #???????????????? | | ?????????????????????# " ##??????????????? | | ?????????????????????# #??????????????? | | ?????????????????????? % #??????????????? | | ?????????????????????? % #??????????????? | | ??????????????????????# R ???????????????? | | ??????????????????????# "" ????????????????? | | ??????????????????????? # """""??????????????? | | ???????????????????????# # """??????????????? | | ????????????????????##?# ###""##?????????????? | | ????????????????????# ## # """#?????????????? | | ????????????????????# ## ###"""#?????????????? | | ????????????????????# @ ### #??????????????? | | ?????????????????##### ## #??????????????? | | ?????????????????#=%### #??????????????? | | ?????????????????# %%#< #??????????????? | | ?????????????????## [!% #??????????????? | | ?????????????????#$ ##< ## #??????????????? | | ?????????????????# "# ## #??????????????? | | ?????????????????##"# ## #??????????????? | | ??????????????????#### #### #??????????????? | | ?????????????????????# #??## #??????????????? | | ?????????????????????# ##???## ??????????????? | | ?????????????????????# ##?????###?????????????? | | ????????????########## #?????????????????????? | | ????????????# # # ##?????????????????????? | | ????????????# #??????????????????????? | | ????????????# # # #???????????????????? | | ????????????# ##### #??????????????????? | | ???????????## ##?? #?????????????????? | | ???????????# ##?# #?????????????????? | | ???????????## #?? ##?????????????????? | | ????????????# ### ##?????????????????? | | ????????????####### #?????????????????? | | ?????????????????## ##?????????????????? | | ????????????????## ##?###??????????????? | | ???????????????## ###??# ##?????????????? | +----------------------------------------------------+ Best States ------------- Heat Dissipation 25 Energy Generation 10 Energy Capacity 250 Matter Stores 300 Matter Capacity 300 Sight Range 16 Terrain Scan Density 10 Evasion (%) 55 Item Schematics ----------------- None Robot Schematics ------------------ None Fabricated ------------ Nothing Repaired ---------- Nothing Alien Tech Used ----------------- None Achievements -------------- None Challenges ------------ None Game ------ Seed RefineryAerolevAutobeam Manual? 0 Play Time 00:15:36 Cumulative 61.2 hours Start 2025.09.23 @ 04:28:43 End 2025.09.23 @ 04:44:06 Sessions 1 Manual Loads 0 Difficulty Rogue Special Mode None Game No. 68 Rogue 68 Adventurer 0 Explorer 0 Win Type - Total 0 Types 0/0/0/0/0/0/0/0/0/0 Lore% 18 Gallery% 31 Achievement% 27 Wizard Run 0 Options --------- Layout 1 ASCII 0 Keyboard 1 Movement Numpad Keybinds 0 Fullscreen 1 Font 32/SmallcapsGlow Map View 77x35 Zoom Use 0% Tactical HUD 1 Map Filters NONE Filters NONE Steam 1 RUN: f41c8563-3ec4-46fa-b220-3a9fe2af7330